bitfinex/quotes_ETHUSD_20220117
["timestamp","ask_amount","ask_price","bid_price","bid_amount"]
[1642441335962,1.73591598,3214.0,3213.3,1.34021411]
[1642441336163,1.73591598,3214.0,3213.4,0.00511581]
[1642441336864,1.73591598,3214.0,3213.5,1.0000673]
[1642441337064,1.73591598,3214.0,3213.5,1.7779073]
[1642441337265,1.73591598,3214.0,3213.0,2.94383588]
[1642441337469,1.50944828,3213.9,3213.0,3.94383588]
[1642441337665,0.02521558,3213.8,3213.1,0.00284212]
[1642441337864,0.02521558,3213.8,3213.1,1.37658793]
[1642441338064,0.00170527,3213.9,3213.1,1.37658793]
[1642441338266,0.00170527,3213.9,3213.3,1.55564]
[1642441338731,0.00170527,3213.9,3213.4,0.00686486]
[1642441338926,0.00170527,3213.9,3213.4,0.00113685]
[1642441339325,0.00170527,3213.9,3213.5,0.7778]
[1642441339525,0.00170527,3213.9,3213.5,1.0778]
[1642441340225,0.00170527,3213.9,3213.6,1.34190672]
[1642441340628,0.00170527,3213.9,3213.7,1.56697484]
[1642441340828,0.00170527,3213.9,3213.7,1.55542]
[1642441341026,0.00170527,3213.9,3213.7,2.55542]
[1642441342765,0.00170527,3213.9,3213.8,15.5816688]
[1642441343170,0.00170527,3213.9,3213.8,4.2816688]
[1642441343371,0.00170527,3213.9,3213.8,0.3]
[1642441343871,0.00170527,3213.9,3213.7,2.85542]
[1642441344275,0.00113685,3213.8,3213.7,2.85542]
[1642441344471,0.00113685,3213.8,3213.7,3.477616]
[1642441345075,0.00113685,3213.8,3213.7,2.477616]
[1642441345276,0.00113685,3213.8,3213.4,0.00113685]
[1642441345277,0.04976366,3213.7,3213.4,0.00113685]
[1642441345673,0.00113685,3213.8,3213.4,0.00113685]
[1642441345873,0.00113685,3213.8,3213.2,0.0022737]
[1642441346509,1.54268181,3213.5,3213.2,0.0022737]
[1642441347013,0.00113685,3213.8,3213.2,0.7801737]
[1642441347214,0.00113685,3213.8,3213.2,1.0801737]
[1642441347414,0.00113685,3213.8,3213.3,0.00170527]
[1642441347617,0.00113685,3213.8,3213.4,0.01687291]
[1642441347816,0.00113685,3213.8,3213.3,0.62398077]
[1642441348013,0.00113685,3213.8,3213.4,0.3]
[1642441348213,0.00113685,3213.8,3213.5,1.93649279]
[1642441350760,0.00113685,3213.8,3213.6,0.00458253]
[1642441350960,0.00113685,3213.8,3213.5,1.93649279]
[1642441351366,0.03045556,3213.7,3213.5,1.93649279]
[1642441351767,0.00113685,3213.8,3213.5,1.93649279]
[1642441351973,0.00113685,3213.8,3213.5,0.77772]
[1642441353709,0.00113685,3213.8,3213.6,0.02250771]
[1642441353912,0.00591223,3213.7,3213.5,0.77772]
[1642441354114,0.00113685,3213.8,3213.5,0.77772]
[1642441354717,0.00113685,3213.8,3213.5,1.3999546]
[1642441354913,0.00113685,3213.8,3213.6,0.01286326]
[1642441355314,0.00113685,3213.8,3213.5,2.6999546]
[1642441356114,0.00113685,3213.8,3213.6,0.02717328]
[1642441356313,0.00113685,3213.8,3213.5,2.6999546]
[1642441356715,0.00113685,3213.8,3213.6,0.00568797]
[1642441357114,0.00113685,3213.8,3213.5,2.6999546]
[1642441358561,0.00113685,3213.8,3213.6,0.04485034]
[1642441359366,0.12448,3214.6,3214.1,1.50558154]
[1642441359567,0.12448,3214.6,3214.2,0.79014064]
[1642441359766,0.00284211,3214.3,3214.2,0.77758]
[1642441359969,0.00284211,3214.3,3214.2,16.07658]
[1642441360166,0.12448,3214.6,3214.3,15.55]
[1642441360468,0.12448,3214.6,3214.4,1.56300144]
[1642441360866,0.11788154,3214.5,3214.4,1.56300144]
[1642441361064,0.11788154,3214.5,3214.4,5.61300144]
[1642441361315,0.11788154,3214.5,3214.4,2.56300144]
[1642441362014,0.11788154,3214.5,3214.4,1.56300144]
[1642441362215,0.11788154,3214.5,3214.4,2.56300144]
[1642441362417,0.11788154,3214.5,3214.4,1.56300144]
[1642441362621,0.11788154,3214.5,3214.4,2.56300144]
[1642441363616,0.11788154,3214.5,3214.4,1.56300144]
[1642441363818,0.11788154,3214.5,3214.4,2.56300144]
[1642441364016,0.11788154,3214.5,3214.4,10.41300144]
[1642441364417,0.12448,3214.6,3214.5,16.7]
[1642441364617,0.12448,3214.6,3214.5,17.7]
[1642441364818,0.12448,3214.6,3214.5,18.149]
[1642441365060,3.9674,3215.3,3215.0,0.7774]
[1642441365266,1.1753,3215.7,3215.2,1.32066676]
[1642441365464,11.0373,3216.4,3215.3,0.0167364]
[1642441365664,3.8508,3216.3,3215.3,0.0167364]
[1642441365863,0.00682108,3215.7,3215.2,2.06966676]
[1642441366363,0.00625266,3215.6,3215.2,2.06966676]
[1642441366562,0.00625266,3215.6,3215.5,0.6218243]
[1642441366768,3.02326287,3216.1,3215.7,1.24042097]
[1642441366963,2.29373736,3215.8,3215.5,0.9218243]
[1642441367964,2.29373736,3215.8,3215.6,1.44630575]
[1642441368465,3.05751086,3216.0,3215.6,2.4066164]
[1642441368466,2.29373736,3215.9,3215.6,2.4066164]
[1642441368713,2.29373736,3215.9,3215.7,0.77726]
[1642441368913,0.0073895,3215.8,3215.7,0.77726]
[1642441369114,0.0073895,3215.8,3215.7,1.07726]
[1642441369513,0.0073895,3215.8,3215.7,2.07726]
[1642441369915,0.0073895,3215.8,3215.7,9.32726]
[1642441370116,0.0073895,3215.8,3215.7,2.07726]
[1642441371116,0.0073895,3215.8,3215.7,3.49141931]
[1642441371315,3.05751086,3216.0,3215.8,0.01034068]
[1642441371517,1.55693895,3216.2,3215.7,3.49141931]
[1642441371719,1.55693895,3216.2,3215.8,0.6217426]
[1642441371917,0.00170527,3216.1,3215.9,0.3]
[1642441372118,0.00170527,3216.1,3216.0,0.7772]
[1642441372321,0.00113685,3216.0,3215.6,0.449]
[1642441372569,0.00113685,3216.0,3215.2,0.449]
[1642441372974,0.00113685,3216.0,3215.3,0.00284211]
[1642441373170,0.00113685,3216.0,3215.4,0.6218683]
[1642441373370,1.29418385,3216.0,3215.5,0.77734]
[1642441373572,0.00113685,3216.0,3215.6,0.00506879]
[1642441373771,0.00113685,3216.0,3215.6,0.00620563]
[1642441374176,0.00113685,3216.0,3215.6,0.00113684]
[1642441374778,1.34049825,3215.9,3215.6,0.00113684]
[1642441375977,0.00727258,3215.8,3215.6,0.00113684]
[1642441376223,1.34049825,3215.9,3215.5,0.00170527]
[1642441376814,1.34049825,3215.9,3215.4,0.30227369]
[1642441377016,1.34049825,3215.9,3215.5,0.00170527]
[1642441377419,1.34049825,3215.9,3215.3,0.00284211]
[1642441378018,1.66341205,3215.8,3215.3,1.00031472]
[1642441378227,1.66341205,3215.8,3215.4,0.03105738]
[1642441378519,1.66341205,3215.8,3215.5,0.00170527]
[1642441378919,1.66341205,3215.8,3215.4,0.00227369]
[1642441379420,2.36737152,3215.7,3215.5,0.99747261]
[1642441379619,2.36737152,3215.7,3215.5,1.29747261]
[1642441379819,2.36737152,3215.7,3215.6,0.00113684]
[1642441380868,2.36737152,3215.7,3215.5,0.30170527]
[1642441381066,2.36737152,3215.7,3215.6,0.00113684]
[1642441381666,2.36737152,3215.7,3215.5,0.00170527]
[1642441381867,2.36737152,3215.7,3215.3,0.00284211]
[1642441382068,1.66341205,3215.8,3215.6,0.99771086]
[1642441382967,1.66341205,3215.8,3215.1,1.77517086]
[1642441383170,2.36737152,3215.7,3215.1,2.07517086]
[1642441383372,2.36737152,3215.7,3215.2,0.00341054]
[1642441384025,2.36737152,3215.7,3215.2,1.0011214]
[1642441384224,1.59700587,3215.4,3215.2,1.0011214]
[1642441384423,1.59700587,3215.4,3215.3,0.00284211]
[1642441386828,2.36737152,3215.6,3215.4,0.0450961]
[1642441387029,2.36737152,3215.6,3215.4,0.8224861]
[1642441387229,2.36737152,3215.6,3215.5,0.00170527]
[1642441387666,7.08829443,3215.8,3215.5,0.99941613]
[1642441387866,4.03078357,3215.8,3215.5,0.99941613]
[1642441388064,4.03078357,3215.8,3215.6,0.00113684]
[1642441389668,2.36737152,3215.8,3215.6,0.9988477]
[1642441390772,2.36737152,3215.9,3215.6,0.9988477]
[1642441391613,2.36737152,3215.9,3215.6,0.00113684]
[1642441391813,2.36737152,3215.8,3215.6,0.00113684]
[1642441392620,1.66341205,3215.8,3215.6,0.99877119]
[1642441393420,2.36737152,3215.8,3215.6,0.00113684]
[1642441393723,2.36737152,3215.8,3215.4,0.00227369]
[1642441394121,1.32095709,3215.6,3215.4,0.00227369]
[1642441395071,2.36737152,3215.7,3215.4,0.00227369]
[1642441395473,2.36737152,3215.7,3215.5,0.77734]
[1642441395876,2.36737152,3215.7,3215.6,0.00113684]
[1642441396073,2.36737152,3215.9,3215.6,0.00113684]
[1642441397373,2.36850837,3216.0,3215.6,0.99763435]
[1642441397773,2.36850837,3216.0,3215.6,1.77496435]
[1642441398172,2.36850837,3216.0,3215.6,0.99763435]
[1642441398374,2.36737152,3215.9,3215.5,0.99763435]
[1642441398575,2.36737152,3215.9,3215.5,1.29763435]
[1642441398823,2.36737152,3215.9,3215.6,0.00113684]
[1642441399823,2.36850837,3216.0,3215.6,0.99877119]
[1642441400820,2.36850837,3216.0,3215.6,0.00113684]
[1642441401020,0.00113685,3216.0,3215.6,0.00113684]
[1642441401220,0.00113685,3216.0,3215.5,0.00170527]
[1642441402222,0.00113685,3216.0,3215.5,0.99419753]
[1642441402466,0.00113685,3216.0,3215.5,0.99249226]
[1642441402667,3.91183401,3216.2,3215.6,0.00113684]
[1642441403467,1.5924784,3216.0,3215.6,0.00113684]
[1642441404572,1.5924784,3216.0,3215.5,0.00170527]
[1642441405172,1.5924784,3216.0,3215.4,0.30227369]
[1642441405372,1.5924784,3216.0,3215.5,0.00170527]
[1642441405574,1.5924784,3216.0,3215.5,1.2928317]
[1642441405773,1.5924784,3216.0,3215.5,1.29112643]
[1642441405973,1.5924784,3216.0,3215.6,0.00113684]
[1642441406420,1.5924784,3216.1,3215.6,0.00113684]
[1642441406920,0.00113685,3216.0,3215.6,0.00113684]
[1642441407122,0.00113685,3216.0,3215.6,0.99331026]
[1642441407524,0.00113685,3216.0,3215.6,1.29331026]
[1642441408325,1.59361525,3216.0,3215.6,0.30113684]
[1642441409130,0.00113685,3216.0,3215.6,0.30113684]
[1642441410169,0.00113685,3216.0,3215.7,0.98913929]
[1642441410369,0.00113685,3216.0,3215.7,1.28913929]
[1642441410668,0.00113685,3216.0,3215.7,2.28913929]
[1642441410869,0.00113685,3216.0,3215.8,0.77723]
[1642441411273,0.00113685,3216.0,3215.9,9.0433877]
[1642441411471,0.00113685,3216.0,3215.9,1.2433877]
[1642441411774,0.00113685,3216.0,3215.9,2.5433877]
[1642441411968,0.00113685,3216.0,3215.9,1.5433877]
[1642441412173,0.00113685,3216.0,3215.9,2.5433877]
[1642441412469,0.00113685,3216.0,3215.9,11.2933877]
[1642441412769,0.00113685,3216.0,3215.9,12.2933877]
[1642441413170,0.00113685,3216.0,3215.9,13.28252699]
[1642441415426,0.00113685,3216.0,3215.9,3.53252699]
[1642441415625,0.00113685,3216.0,3215.9,6.49670683]
[1642441416425,1.55693895,3216.2,3216.0,17.95]
[1642441416628,1.5924784,3216.7,3216.1,23.0986535]
[1642441416832,1.5924784,3216.4,3216.2,1.26272201]
[1642441417127,2.36737152,3216.6,3216.4,14.05]
[1642441417128,2.37078206,3216.6,3216.4,14.05]
[1642441417482,3.05751086,3216.9,3216.6,20.0]
[1642441417680,2.27351695,3217.1,3216.8,15.45]
[1642441417882,7.42,3218.2,3217.1,20.0]
[1642441418084,2.3943612,3217.3,3217.2,4.3190612]
[1642441418283,3.1924816,3217.5,3217.2,1.10684487]
[1642441418485,3.1924816,3217.5,3217.2,2.13783261]
[1642441418681,3.1924816,3217.5,3217.2,1.13783261]
[1642441419487,3.1924816,3217.5,3217.2,0.449]
[1642441419687,3.1924816,3217.5,3217.2,2.00252]
[1642441419886,3.990602,3218.0,3217.2,0.449]
[1642441420087,5.22921026,3218.5,3217.2,0.449]
[1642441420287,0.00341054,3217.9,3217.2,0.449]
[1642441420688,0.00284211,3217.8,3217.2,1.449]
[1642441420988,0.00227369,3217.7,3217.2,1.449]
[1642441421225,1.24366898,3217.3,3216.7,5.56833]
[1642441421417,1.24366898,3217.3,3216.4,0.449]
[1642441421620,1.24366898,3217.3,3216.8,0.00284212]
[1642441421817,1.24366898,3217.3,3216.5,0.00454739]
[1642441421818,1.19366898,3217.3,3216.5,0.00454739]
[1642441422021,1.11723827,3217.1,3216.5,0.00454739]
[1642441422219,1.15357855,3216.6,3216.5,0.00454739]
[1642441422618,1.15357855,3216.6,3216.5,1.55858739]
[1642441422818,0.00170527,3217.6,3216.5,1.55858739]
[1642441423119,0.00113684,3217.5,3216.6,0.00397897]
[1642441423320,0.00113684,3217.5,3216.8,0.77704]
[1642441423620,0.00227369,3217.7,3216.9,0.0022737]
[1642441424022,3.7018,3217.8,3216.9,0.0022737]
[1642441424023,1.3769095,3217.4,3216.9,0.0022737]
[1642441424222,0.02524901,3217.3,3216.9,0.0022737]
[1642441424421,0.02524901,3217.3,3216.6,0.00397897]
[1642441424626,1.6769095,3217.4,3216.2,3.2168649]
[1642441424823,1.6769095,3217.4,3216.3,0.00568424]
[1642441425071,1.2128694,3216.4,3216.3,0.00568424]
[1642441425271,1.2128694,3216.4,3216.1,0.00682109]
[1642441425867,1.2128694,3216.4,3216.0,0.00738951]
[1642441426273,0.00584926,3216.3,3216.0,0.00738951]
[1642441427075,0.77719,3217.2,3216.1,0.01541265]
[1642441427395,0.77719,3217.2,3216.2,0.00625266]
[1642441427396,1.5964466,3217.0,3216.2,0.00625266]
[1642441427973,1.51831785,3216.6,3216.2,0.00625266]
[1642441429042,1.11075937,3216.5,3216.2,0.00625266]
[1642441429641,1.41075937,3216.5,3216.2,0.00625266]
[1642441429839,1.41075937,3216.5,3216.1,0.00682109]
[1642441430240,1.11075937,3216.5,3216.1,0.00682109]
[1642441431442,1.11075937,3216.5,3215.9,0.00795793]
[1642441431640,1.34230084,3216.1,3215.7,0.00909478]
[1642441431840,2.3737766,3216.7,3215.7,0.00909478]
[1642441431841,2.3737766,3216.7,3215.7,0.78641478]
[1642441432041,1.8964466,3216.7,3215.7,3.65927723]
[1642441432241,1.8964466,3216.7,3215.8,0.00852636]
[1642441432678,1.5964466,3216.7,3215.8,0.00852636]
[1642441433276,1.1005064,3215.9,3215.8,0.00852636]
[1642441433476,1.27463485,3216.3,3215.8,1.58138881]
[1642441433879,1.27463485,3216.3,3215.9,0.00795793]
[1642441434879,1.24451201,3216.2,3215.9,0.00795793]
[1642441435079,1.24451201,3216.2,3215.9,0.30795793]
[1642441435478,1.24451201,3216.2,3216.0,0.00738951]
[1642441435880,1.24451201,3216.2,3215.8,0.00852636]
[1642441436349,1.24451201,3216.2,3215.8,0.30852636]
[1642441436550,1.24451201,3216.2,3215.8,0.00852636]
[1642441436748,1.24451201,3216.2,3215.9,0.00795793]
[1642441436950,1.24451201,3216.2,3215.7,0.00909478]
[1642441437451,1.24451201,3216.2,3215.9,2.96097464]
[1642441437749,1.24451201,3216.2,3216.0,0.00738951]
[1642441438953,1.54451201,3216.2,3216.1,2.66097464]
[1642441439455,1.54451201,3216.2,3216.1,2.66779573]
[1642441439856,1.54451201,3216.2,3216.1,0.00682109]
[1642441440091,33.76,3216.1,3216.0,2.66097464]
[1642441440892,18.11,3216.1,3216.0,2.66097464]
[1642441441089,1.30744454,3215.7,3215.2,1.57286245]
[1642441441290,1.60744454,3215.7,3215.2,1.57286245]
[1642441441487,0.3,3215.7,3215.3,0.00454738]
[1642441441692,1.07763,3215.7,3215.3,0.00454738]
[1642441441887,0.77763,3215.7,3215.3,0.00454738]
[1642441442088,1.12981083,3215.6,3215.3,0.00454738]
[1642441442993,0.3,3215.7,3215.2,0.00511581]
[1642441443191,1.8964466,3215.9,3215.2,0.00511581]
[1642441443836,0.3,3215.9,3215.2,1.57286245]
[1642441444037,6.5186466,3216.2,3215.2,1.57286245]
[1642441444038,6.5186466,3216.2,3215.3,2.94034668]
[1642441444237,5.3876466,3216.2,3215.3,4.31424668]
[1642441444435,5.3876466,3216.2,3215.4,1.00397896]
[1642441444636,1.5964466,3216.2,3215.5,3.31460306]
[1642441444839,1.5964466,3216.2,3215.5,3.3180136]
[1642441445041,1.5964466,3216.2,3215.7,0.7773]
[1642441445241,1.17868469,3215.8,3215.7,0.7773]
[1642441445441,1.17868469,3215.8,3215.7,1.0773]
[1642441445644,1.17868469,3215.8,3215.7,2.0773]
[1642441445841,5.3309466,3216.3,3215.7,1.0773]
[1642441446040,1.5964466,3216.3,3215.7,2.0773]
[1642441446241,1.5964466,3216.3,3215.8,0.00170527]
[1642441446944,1.11423887,3216.2,3215.8,0.00170527]
[1642441447245,1.59928872,3216.6,3216.0,0.77725]
[1642441447502,1.59928872,3216.6,3216.1,3.69316104]
[1642441447694,0.0022737,3216.5,3216.1,3.69316104]
[1642441447895,0.0022737,3216.5,3216.1,3.23292671]
[1642441448095,0.00170528,3216.4,3216.2,1.0]
[1642441448301,1.39520362,3216.2,3216.0,1.07725]
[1642441448595,1.39520362,3216.2,3216.1,0.6217375]
[1642441448796,0.00113685,3216.3,3216.1,3.56678425]
[1642441449096,0.00113685,3216.3,3216.2,8.32854488]
[1642441449296,0.00113685,3216.3,3216.2,9.62854488]
[1642441449695,0.00113685,3216.3,3216.2,6.7]
[1642441449897,0.00113685,3216.3,3216.2,9.56984017]
[1642441450298,0.00113685,3216.3,3216.2,9.57554302]
[1642441450901,0.00113685,3216.3,3216.2,18.32554302]
[1642441451330,0.00113685,3216.3,3216.2,9.57554302]
[1642441451530,0.00113685,3216.3,3216.2,9.55437991]
[1642441451732,0.00113685,3216.3,3216.2,6.7]
[1642441451935,0.00113685,3216.3,3216.2,16.85]
[1642441453134,0.00113685,3216.3,3216.2,6.7]
[1642441453540,0.54517082,3216.5,3216.2,6.7]
[1642441453834,1.21705891,3216.5,3216.3,0.77718]
[1642441454035,1.21705891,3216.5,3216.3,1.77718]
[1642441454235,1.21705891,3216.5,3216.3,0.77718]
[1642441454435,1.21705891,3216.5,3216.3,1.77718]
[1642441454633,1.21705891,3216.5,3216.3,0.77718]
[1642441455686,1.51705891,3216.5,3216.1,1.57286245]
[1642441456489,1.51705891,3216.5,3216.4,2.50021279]
[1642441456689,2.62754347,3216.5,3216.4,2.50021279]
[1642441456885,6.72868032,3216.5,3216.4,2.50021279]
[1642441457090,2.62868032,3216.5,3216.4,2.50021279]
[1642441457788,2.62868032,3216.5,3216.0,2.50021279]
[1642441457987,2.62868032,3216.5,3216.1,0.3]
[1642441458186,2.62868032,3216.5,3216.1,0.00113685]
[1642441459431,2.62868032,3216.5,3215.9,0.00227369]
[1642441459830,2.62868032,3216.5,3216.1,2.50021279]
[1642441460032,2.62868032,3216.5,3216.1,2.80021279]
[1642441461034,2.62868032,3216.5,3216.2,2.50021279]
[1642441461239,1.51819576,3216.5,3216.2,2.50021279]
[1642441461432,1.21819576,3216.5,3216.2,2.50021279]
[1642441462234,1.21819576,3216.5,3216.2,3.27741279]
[1642441462484,0.00113685,3216.5,3216.2,3.27741279]
[1642441462683,0.00113685,3216.5,3216.3,1.0]
[1642441463086,0.00113685,3216.5,3216.3,1.3]
[1642441463486,1.26340393,3216.4,3216.3,1.3]
[1642441463687,0.00113685,3216.5,3216.3,1.3]
[1642441464087,0.00113685,3216.5,3216.4,2.50021279]
[1642441465088,1.5137997,3216.5,3216.4,2.50021279]
[1642441466331,1.30289779,3216.6,3216.5,18.4862003]
[1642441466732,2.71870537,3216.6,3216.5,18.4862003]
[1642441467138,3.01870537,3216.6,3216.5,18.4862003]
[1642441467337,2.71870537,3216.6,3216.5,18.4862003]
[1642441467538,2.71870537,3216.6,3216.5,20.98641309]
[1642441467738,3.01870537,3216.6,3216.5,20.98641309]
[1642441467941,2.71870537,3216.6,3216.5,20.98641309]
[1642441469840,1.41580758,3216.6,3216.5,20.98641309]
[1642441470786,1.71580758,3216.6,3216.5,23.84632302]
[1642441471791,0.3,3216.6,3216.5,23.84632302]
[1642441471989,0.30170527,3216.8,3216.5,23.84632302]
[1642441472391,0.00113685,3216.7,3216.5,23.84632302]
[1642441472590,0.00113685,3216.7,3216.6,7.1]
[1642441472791,0.00113685,3216.7,3216.5,24.14632302]
[1642441473840,0.00113685,3216.7,3216.6,5.36012272]
[1642441474641,0.00113685,3216.7,3216.6,6.36012272]
[1642441475040,0.00113685,3216.7,3216.6,5.36012272]
[1642441478493,1.3235724,3216.7,3216.6,5.36012272]
[1642441478691,5.7235724,3216.7,3216.6,2.50021279]
[1642441479897,1.3235724,3216.7,3216.6,2.50021279]
[1642441481536,1.3235724,3216.7,3216.6,5.32597753]
[1642441481736,5.4735724,3216.7,3216.6,5.32597753]
[1642441481935,1.3235724,3216.7,3216.6,5.62597753]
[1642441482535,6.97907512,3216.7,3216.6,2.80021279]
[1642441482936,18.11,3217.1,3217.0,4.00455144]
[1642441483136,2.74129466,3217.1,3217.0,4.00455144]
[1642441485085,1.36785465,3217.1,3217.0,4.30455144]
[1642441485286,6.0391699,3217.4,3217.0,4.30455144]
[1642441485491,2.3946699,3217.4,3217.0,4.30455144]
[1642441485692,0.00341054,3217.3,3217.0,4.30455144]
[1642441486091,0.00284211,3217.2,3217.0,4.30455144]
[1642441486294,1.40742935,3217.2,3217.0,4.30455144]
[1642441486494,0.00227369,3217.1,3217.0,4.30455144]
[1642441490041,1.16084141,3217.4,3217.0,4.30455144]
[1642441490640,0.00227369,3217.5,3217.0,4.30455144]
[1642441491040,0.00170527,3217.4,3217.0,4.30455144]
[1642441491442,0.00113685,3217.3,3217.0,4.30455144]
[1642441491643,0.00113685,3217.3,3217.1,1.1226067]
[1642441491842,0.00284212,3217.6,3217.1,2.4226067]
[1642441492242,0.00341054,3217.7,3217.1,2.4226067]
[1642441492487,0.00341054,3217.7,3217.1,3.89164556]
[1642441492687,0.00284212,3217.6,3217.1,3.89164556]
[1642441493085,0.00454739,3217.9,3217.1,3.89164556]
[1642441493285,0.00454739,3217.9,3217.6,1.30470373]
[1642441493487,6.67782645,3218.1,3217.6,1.30470373]
[1642441493488,0.00397896,3217.8,3217.6,1.30470373]
[1642441493686,0.00397896,3217.8,3217.6,1.60470373]
[1642441493887,0.00341054,3217.7,3217.6,1.60470373]
[1642441495489,0.00341054,3217.7,3217.6,8.95470373]
[1642441495690,0.00341054,3217.7,3217.6,9.95470373]
[1642441495891,0.00341054,3217.7,3217.6,2.60470373]
[1642441496230,0.00341054,3217.7,3217.6,1.60470373]
[1642441496431,0.00341054,3217.7,3217.6,2.60470373]
[1642441496631,0.00341054,3217.7,3217.6,2.38156373]
[1642441496832,0.00341054,3217.7,3217.6,3.38156373]
[1642441497232,0.00341054,3217.7,3217.6,2.38156373]
[1642441497433,0.00341054,3217.7,3217.6,3.38156373]
[1642441497633,0.00341054,3217.7,3217.6,1.60470373]
[1642441497841,0.00341054,3217.7,3217.6,2.60470373]
[1642441498239,0.00341054,3217.7,3217.6,1.60470373]
[1642441498439,0.00341054,3217.7,3217.6,11.05470373]
[1642441498841,0.00341054,3217.7,3217.6,2.60470373]
[1642441499442,0.00341054,3217.7,3217.6,19.95470373]
[1642441499642,0.00341054,3217.7,3217.6,20.95470373]
[1642441500083,0.00341054,3217.7,3217.6,2.60470373]
[1642441500289,0.00341054,3217.7,3217.6,1.60470373]
[1642441500589,0.00341054,3217.7,3217.6,11.55470373]
[1642441500786,0.00341054,3217.7,3217.6,1.60470373]
[1642441501389,0.00341054,3217.7,3217.6,20.18928373]
[1642441501586,0.00341054,3217.7,3217.6,22.74285373]
[1642441502594,1.59292645,3218.6,3217.7,19.95]
[1642441502793,1.59292645,3218.6,3217.9,0.77661]
[1642441502989,1.59292645,3218.6,3218.0,1.58720131]
[1642441502990,0.00341054,3218.3,3218.0,1.58720131]
[1642441503196,0.00341054,3218.3,3218.1,1.55305]
[1642441503389,0.00284212,3218.2,3218.1,16.76883679]
[1642441503589,1.59292645,3218.6,3218.1,19.18532594]
[1642441503834,1.59292645,3218.6,3218.2,10.5]
[1642441504036,0.00170527,3218.5,3218.3,1.0]
[1642441504239,0.00170527,3218.5,3218.4,9.92656]
[1642441504534,0.20177385,3218.8,3218.4,9.92656]
[1642441504535,0.20177385,3218.8,3218.4,11.22656]
[1642441504934,0.00284211,3218.7,3218.6,1.16903237]
[1642441505337,0.00284211,3218.7,3218.6,1.46903237]
[1642441505844,0.00284211,3218.7,3218.6,2.24558237]
[1642441506241,0.00284211,3218.7,3218.6,1.46903237]
[1642441507493,0.00284211,3218.7,3218.6,3.8718075]
[1642441507685,0.00284211,3218.7,3218.6,5.8294575]
[1642441507884,0.00284211,3218.7,3218.6,9.03684334]
[1642441508088,0.00284211,3218.7,3218.6,5.8294575]
[1642441508288,0.00284211,3218.7,3218.6,19.3294575]
[1642441508495,0.20177385,3219.0,3218.7,19.95]
[1642441508695,0.20177385,3218.9,3218.8,6.30348104]
[1642441508890,0.2029107,3218.9,3218.8,6.30348104]
[1642441509090,1.59292645,3219.4,3218.9,19.85]
[1642441509489,0.00113685,3219.1,3219.0,1.0]
[1642441510293,0.00113685,3219.1,3219.0,12.25]
[1642441511336,0.00113685,3219.1,3219.0,1.0]
[1642441511538,0.00113685,3219.1,3218.8,2.86792126]
[1642441511738,0.00113685,3219.1,3218.8,3.64448126]
[1642441512139,0.00113685,3219.1,3218.8,4.18804206]
[1642441512540,0.00113685,3219.1,3218.8,2.86792126]
[1642441512743,0.00113685,3219.1,3218.8,3.16792126]
[1642441513145,0.00113685,3219.1,3218.8,0.3]
[1642441513349,0.00113685,3219.1,3218.4,1.5613987]
[1642441513749,0.00113685,3219.1,3218.5,0.00227369]
[1642441513946,1.35745683,3219.0,3218.5,0.00227369]
[1642441514145,1.23207992,3218.9,3218.5,0.00227369]
[1642441514346,0.31961303,3218.8,3218.5,0.00227369]
[1642441514548,18.42961303,3218.7,3218.5,0.00227369]
[1642441514747,18.42961303,3218.7,3218.3,0.00341054]
[1642441515007,0.31961303,3218.7,3218.0,0.00511581]
[1642441515408,2.83872364,3218.4,3218.0,0.00511581]
[1642441516511,2.83872364,3218.4,3217.5,1.78483793]
[1642441516706,2.83872364,3218.4,3217.5,2.08483793]
[1642441516906,1.26154199,3217.9,3217.6,0.0073895]
[1642441517107,1.26154199,3217.9,3217.6,0.3073895]
[1642441517307,1.15075665,3218.6,3217.6,0.3073895]
[1642441517510,1.13807097,3218.6,3217.7,2.60229573]
[1642441517708,1.59543931,3218.5,3217.8,1.0]
[1642441517906,1.5999867,3218.5,3217.4,1.5613987]
[1642441518108,0.00397896,3218.4,3217.4,1.5613987]
[1642441518316,0.00397896,3218.4,3217.5,0.00113685]
[1642441518609,0.00341054,3218.3,3218.2,1.42032655]
[1642441518839,0.00341054,3218.3,3217.7,1.5613987]
[1642441519242,0.31961303,3218.7,3218.1,10.0]
[1642441519439,0.31961303,3218.7,3218.2,0.77653]
[1642441519741,0.00227369,3218.6,3218.2,2.39927907]
[1642441519939,0.31961303,3218.4,3218.2,2.3200937]
[1642441520139,0.31961303,3218.4,3218.3,6.55475513]
[1642441520339,0.31961303,3218.4,3218.3,1.75475513]
[1642441520538,0.31961303,3218.4,3218.3,1.3]
[1642441520539,0.32074987,3218.4,3218.3,1.3]
[1642441520744,0.32074987,3218.4,3218.3,0.3]
[1642441520939,0.32074987,3218.4,3218.2,1.07653]
[1642441521142,0.32074987,3218.4,3218.2,2.07653]
[1642441521943,0.32074987,3218.4,3218.3,8.32865071]
[1642441522144,0.32074987,3218.4,3218.3,8.87231111]
[1642441522586,0.32074987,3218.4,3218.3,10.17231111]
[1642441522791,0.32074987,3218.4,3218.3,4.67231111]
[1642441522990,0.32074987,3218.4,3218.3,4.63908989]
[1642441523190,0.32074987,3218.4,3218.3,1.8436604]
[1642441523593,0.32074987,3218.4,3218.3,0.3]
[1642441523790,0.32074987,3218.4,3218.1,0.3]
[1642441523993,0.32074987,3218.4,3218.0,1.8613987]
[1642441524392,0.32074987,3218.4,3218.0,0.3]
[1642441524593,0.32074987,3218.4,3217.9,2.8613987]
[1642441524793,1.77833912,3218.2,3217.9,2.8613987]
[1642441524993,1.77833912,3218.2,3218.0,0.00113685]
[1642441526441,2.07833912,3218.2,3218.0,0.00113685]
[1642441526636,2.07833912,3218.2,3217.8,0.0022737]
[1642441528040,2.07833912,3218.2,3217.7,1.5613987]
[1642441528041,2.07833912,3218.2,3217.7,0.5636724]
[1642441528239,0.00170527,3218.1,3217.1,4.5121724]
[1642441528440,1.18945336,3217.4,3217.1,4.5121724]
[1642441528639,1.18945336,3217.4,3217.2,0.00341054]
[1642441529647,1.18945336,3217.4,3217.2,1.84357752]
[1642441530090,1.18945336,3217.4,3217.3,0.00284211]
[1642441535255,1.50906639,3217.4,3217.3,0.00284211]
[1642441535552,0.63922606,3217.4,3217.3,0.00284211]
[1642441535753,0.63922606,3217.4,3217.3,2.74572138]
[1642441535952,0.63922606,3217.4,3217.3,12.30284211]
[1642441536152,0.63922606,3217.4,3217.3,13.60284211]
[1642441536952,0.63922606,3217.4,3217.3,12.60284211]
[1642441537159,0.63922606,3217.4,3217.3,15.45668404]
[1642441537354,0.63922606,3217.4,3217.3,17.29685102]
[1642441538218,0.63922606,3217.4,3217.3,18.29685102]
[1642441539019,0.63922606,3217.4,3217.3,25.94685102]
[1642441539421,0.63922606,3217.4,3217.3,28.81477228]
[1642441539824,0.63922606,3217.4,3217.3,29.94783248]